{"text_format":"1","workbook":"xlsx","n_sheets":17,"sheets":["記載要領","第1号","第1号 第二面","第2号 (助成対象事業者用)","第2号 (共同申請者①用) ","第2号 (共同申請者②用) ","第2号 (共同申請者③用) ","第2号 (手続き代行者用)","第3号","第4号.風力","第4号.風力発電設備の概要_1枚目","第4号.風力発電設備の概要_２枚目","第4号.風力発電設備の概要_３枚目","第4号.風力発電設備の概要_４枚目","第4号.風力発電設備の概要_５枚目","第4号.風力_導入効果","第4号.風力4ー10"],"not_rendered":{"charts":0,"images":1,"macros":0,"external_links":3,"defined_names":31,"comments":0,"pivot_tables":0},"unopened":[],"bounds":{"document_bytes":16777216,"sheet_cells":100000,"rows_first":2000,"rows_last":500,"rows_between":2000,"halvings":0,"cell_chars":16384,"cell_head_chars":4096},"cells_cut":0,"cells_raw":0,"read":"whole","date_system":"1900"}

{"sheet":"記載要領","index":0,"n_rows":61,"n_cols":10,"rows_kept":61,"cut":false,"hidden":false,"merged":[[53,3,53,26],[57,3,57,26],[1,1,1,27],[58,3,58,26],[20,3,20,26],[45,1,45,27],[49,3,49,26],[54,3,54,26],[33,3,33,26],[34,3,34,26],[21,3,21,26]]}
[]
[null,"再エネ設備の新規導入につながる電力調達構築事業助成金\n申請関係様式の記入要領"]
[]
[null,"１．本エクセルで作成する個別様式"]
[null,null,"・第１号様式",null,null,null,null,null,"：","助成金交付申請書"]
[null,null,"・第２号様式",null,null,null,null,null,"：","誓約書"]
[null,null,"・第３号様式",null,null,null,null,null,"：","助成対象事業の実施に係る同意書"]
[null,null,"・第４号様式",null,null,null,null,null,"：","事業実施計画書（※設備ごとに様式が異なります。該当する様式を使用してください。）"]
[]
[]
[]
[null,"２．入力の流れ"]
[]
[]
[]
[]
[null,null,null,null,null,null,null,null,null,"シートの列んでいる順番に入力していく"]
[]
[null,"３．入力の手順"]
[null,null,"（１）「基本情報」入力シートへの入力"]
[null,null,null,"　「基本情報」入力シートに、入力可能な情報を入力してください。"]
[null,null,null,"　（重複する入力等の省力化ができます。）"]
[]
[null,null,null,null,null,"セルの色が黄色い部分に入力してください。　"]
[]
[null,null,null,null,null,"セルの色が水色の部分は自動計算、又はリンク自動表示されています。入力は不要です。"]
[]
[null,null,null,null,null,"セルの色がピンク色の部分は、プルダウンリストから選択してください。"]
[]
[null,null,null,null,null,"セルが着色されていない部分は、全て保護が掛かっていますので、入力はできません。"]
[]
[]
[null,null,"（２）個別様式への入力"]
[null,null,null,"上述の「基本情報」入力シートへ入力した情報で、個別の様式にリンク可能な情報はリンク自動表示されます。"]
[null,null,null,"入力するセルの色使いは「基本情報」入力シートと同じです。"]
[]
[null,null,null,null,null,"セルの色が黄色い部分に入力してください。　"]
[]
[null,null,null,null,null,"セルの色が水色の部分は自動計算、又はリンク自動表示されています。入力は不要です。"]
[]
[null,null,null,null,null,"セルの色がピンク色の部分は、プルダウンリストから選択してください。"]
[]
[null,null,null,null,null,"セルが着色されていない部分は、全て保護が掛かっていますので、入力はできません。"]
[]
[]
[null,"再エネ設備の新規導入につながる電力調達構築事業助成金\n申請関係様式の記入要領"]
[]
[]
[null,"１．申請する各様式の印刷について"]
[null,null,null,"各様式を印刷するにあたっては、セルの色を印刷しないようお願い致します。"]
[]
[]
[null,"２．設定方法"]
[null,null,null,"※本ファイルは、セルの色を印刷しないよう設定しています。"]
[null,null,null,"　もし、設定が解除されておりましたら、下記の手順を基に設定してください。"]
[]
[null,null,"【印刷設定の手順】"]
[null,null,null,"①「ファイル」メニューの「ページ設定」を実行し、「ページ設定」ダイアログボックスを表示する。"]
[null,null,null,"②「シート」タブをクリックして「白黒印刷」チェックボックスをオンにする。"]
[]
[null,null,null,"「印刷プレビュー」→「ページ設定」→「シート」タブ→印刷の「白黒印刷」にチェック→「OK」→印刷"]

{"sheet":"第1号","index":1,"n_rows":45,"n_cols":20,"rows_kept":45,"cut":false,"hidden":false,"merged":[[49,9,49,16],[50,9,50,11],[50,12,50,15],[13,9,13,16],[14,9,14,16],[48,9,48,16],[23,1,23,16],[24,2,24,5],[19,1,19,16],[22,1,22,16],[39,2,39,4],[39,5,39,16],[32,1,33,5],[32,6,33,16],[43,2,43,4],[43,5,43,16],[11,9,11,11],[2,10,2,11],[11,12,11,16],[24,6,24,16],[25,2,31,5],[25,10,25,14],[27,10,27,14],[29,10,29,14],[31,10,31,14],[15,9,15,16],[12,9,12,16],[9,9,9,16],[10,9,10,16],[36,2,37,16],[38,2,38,4],[38,5,38,16],[44,2,44,4],[44,5,44,13],[44,14,44,16],[40,2,40,4],[40,5,40,16],[41,2,41,4],[41,5,41,16],[42,2,42,4],[42,5,42,16]]}
[" ","第１号様式（第８条関係) ",null,null,null,null,null,null,null,null,null,null,null,null,null,null,"1/2枚目"]
[]
[null,null,null,null,null,null,null,null,null,null,null,null,"年",null,"月",null,"日",null,null,"←手入力"]
[]
["公益財団法人　東京都環境公社"]
["　理事長　殿"]
[]
[]
[null,null,null,null,null,null,null,null,"（助成対象事業者）"]
[null,null,null,null,null,null,null,null,"住　所："]
[null,null,null,null,null,null,null,null,"名　称："]
[null,null,null,null,null,null,null,null,"代表者の職・氏名："]
[null,null,null,null,null,null,null,null,"担当者所　属部課名："]
[null,null,null,null,null,null,null,null,"氏名："]
[null,null,null,null,null,null,null,null,"電話番号："]
[null,null,null,null,null,null,null,null,"E-mail："]
[]
[null,"再エネ設備の新規導入につながる電力調達構築事業"]
[]
[null,"助成金交付申請書"]
[]
[null,null,"【第一面】"]
[null,"再エネ設備の新規導入につながる電力調達構築事業助成金交付要綱（令和３年８月19日付３都環公地温第1050号） 第8条第1項の規定に基づき、下記のとおり助成金の交付を申請します。"]
[null,"記"]
[null,null,"助成対象事業の名称"]
[null,null,"助成金交付申請額等",null,null,null,null,"(1) 助成事業に要する経費",null,null,null,null,null,null,null,"円","(税抜)"]
[]
[null,null,null,null,null,null,null,"(2) 他助成金等受給(予定)額",null,null,null,null,null,null,null,"円"]
[]
[null,null,null,null,null,null,null,"(3) 助成対象経費",null,null,null,null,null,null,null,"円"]
[]
[null,null,null,null,null,null,null,"(4) 助成金交付申請額",null,null,null,null,null,null,null,"円"]
[null,"助成金交付予定先となる事業者"]
[]
[null,null,"※(2)他助成金等受給(予定)額はその他執行団体等の補助金・助成金"]
[null,null,null,null,"を申請しない場合は【0】を記入してください"]
[null,null,"(2)他助成金等受給(予定)額の項目で【0】以外を記入した場合、以下の項目に情報を記入してください"]
[]
[null,null,"助成金等の名称"]
[null,null,"助成金等の\n交付機関名称"]
[null,null,"助成金等の目的"]
[null,null,"実施期間（開始）"]
[null,null,"実施期間（終了）"]
[null,null,"交付決定時期"]
[null,null,"交付申請額",null,null,null,null,null,null,null,null,null,null,null," 円"]

{"sheet":"第1号 第二面","index":2,"n_rows":38,"n_cols":23,"rows_kept":38,"cut":false,"hidden":false,"merged":[[7,2,14,5],[8,8,8,16],[7,8,7,16],[9,8,9,16],[14,9,14,16],[13,9,13,16],[12,9,12,16],[11,9,11,16],[10,8,10,10],[10,11,10,16],[23,2,30,5],[24,8,24,16],[23,8,23,16],[25,8,25,16],[27,9,27,16],[28,9,28,16],[29,9,29,16],[30,9,30,16],[26,8,26,10],[26,11,26,16],[15,2,22,5],[16,8,16,16],[15,8,15,16],[17,8,17,16],[19,9,19,16],[20,9,20,16],[21,9,21,16],[22,9,22,16],[18,8,18,10],[18,11,18,16],[38,1,40,2],[38,4,38,13],[38,14,40,16],[39,4,39,13],[40,4,40,13],[31,2,37,5],[31,8,31,16],[32,8,32,16],[34,9,34,16],[35,9,35,16],[36,9,36,16],[37,9,37,16],[33,8,33,10],[33,11,33,16]]}
[null,"第１号様式 （第８条関係)",null,null,null,null,null,null,null,null,null,null,null,null,null,null,"2/2枚目"]
[]
[null,null,"【第二面】"]
[]
[null,null,"以下に、共同申請者、手続代行者を記入してください"]
[null,null,"※共同申請者、手続代行者は、必要な場合に記載してください"]
[]
[null,null,"共同申請者①",null,null,null,null,"名称",null,null,null,null,null,null,null,null,null,null,null,null,null,null,"プルダウンより選択してください"]
[null,null,null,null,null,null,null,"種別","プルダウンより選択してください",null,null,null,null,null,null,null,null,null,null,null,null,null,"発電事業者"]
[null,null,null,null,null,null,null,"住所",null,null,null,null,null,null,null,null,null,null,null,null,null,null,"小売電気事業者"]
[null,null,null,null,null,null,null,"代表者職・氏名",null,null,null,null,null,null,null,null,null,null,null,null,null,null,"電力需要家"]
[null,null,null,null,null,null,null,"担当者","部課名",null,null,null,null,null,null,null,null,null,null,null,null,null,"リース事業者"]
[null,null,null,null,null,null,null,null,"氏名"]
[null,null,null,null,null,null,null,null,"電話番号"]
[null,null,null,null,null,null,null,null,"E-mail"]
[null,null,"共同申請者②",null,null,null,null,"名称"]
[null,null,null,null,null,null,null,"種別","プルダウンより選択してください"]
[null,null,null,null,null,null,null,"住所"]
[null,null,null,null,null,null,null,"代表者職・氏名"]
[null,null,null,null,null,null,null,"担当者","部課名"]
[null,null,null,null,null,null,null,null,"氏名"]
[null,null,null,null,null,null,null,null,"電話番号"]
[null,null,null,null,null,null,null,null,"E-mail"]
[null,null,"共同申請者③",null,null,null,null,"名称"]
[null,null,null,null,null,null,null,"種別","プルダウンより選択してください"]
[null,null,null,null,null,null,null,"住所"]
[null,null,null,null,null,null,null,"代表者職・氏名"]
[null,null,null,null,null,null,null,"担当者","部課名"]
[null,null,null,null,null,null,null,null,"氏名"]
[null,null,null,null,null,null,null,null,"電話番号"]
[null,null,null,null,null,null,null,null,"E-mail"]
[null,null,"手続代行者",null,null,null,null,"名称"]
[null,null,null,null,null,null,null,"住所"]
[null,null,null,null,null,null,null,"代表者職・氏名"]
[null,null,null,null,null,null,null,"担当者","部課名"]
[null,null,null,null,null,null,null,null,"氏名"]
[null,null,null,null,null,null,null,null,"電話番号"]
[null,null,null,null,null,null,null,null,"E-mail"]

{"sheet":"第2号 (助成対象事業者用)","index":3,"n_rows":37,"n_cols":11,"rows_kept":37,"cut":false,"hidden":false,"merged":[[3,0,3,16],[4,0,4,16],[34,4,34,8],[12,2,12,14],[25,1,25,15],[27,3,27,4],[34,10,34,14],[23,2,23,15],[30,4,30,14],[32,4,32,14],[9,2,9,15],[10,2,10,15],[11,2,11,15],[19,2,19,15],[21,2,21,15]]}
[null,"第２号様式（第８条関係)"]
[]
[null,"再エネ設備の新規導入につながる電力調達構築事業"]
["誓　　約　　書"]
["【第一面】"]
[]
[null,"公益財団法人　東京都環境公社"]
[null,"　理事長　殿"]
[]
[null,1,"　再エネ設備の新規導入につながる電力調達構築事業助成金交付要綱（令和３年８月19日付３都環公地温第1050号。以下「交付要綱」という。）第８条の規定に基づく助成金の交付の申請を行うに当たり、当該申請により助成金等の交付を受けようとする者（法人その他の団体にあっては、代表者、役員又は使用人その他の従業員若しくは構成員を含む。）が交付要綱第４条に規定する助成対象事業者に該当し、将来にわたっても該当するよう法令等を遵守することをここに誓約いたします。"]
[null,2,"　この誓約に違反又は相違があり、交付要綱第24条の規定により助成金交付決定の全部又は一部の取消しを受けた場合において、交付要綱第25条に規定する助成金の返還を請求されたときは、これに異議なく応じることを誓約いたします。"]
[null,3,"　貴公社理事長又は東京都が必要と認めた場合には、暴力団関係者であるか否かの確認のため、警視庁へ照会がなされることに同意いたします。"]
[null,null,"※　この誓約書における「暴力団関係者」とは、次に掲げる者をいう。"]
[null,null,null,"・暴力団又は暴力団員が実質的に経営を支配する法人等に所属する者"]
[null,null,null,"・暴力団又員を雇用している者"]
[null,null,null,"・暴力団又は暴力団員を不当に利用していると認められる者"]
[null,null,null,"・暴力団の維持、運営に協力し、又は関与していると認められる者"]
[null,null,null,"・暴力団又は暴力団員と社会的に非難されるべき関係を有していると認められる者"]
[]
[null,4,"　当該申請した事業は、取得財産等の処分制限がかかる期間において「電気事業者による再生可能エネルギー電気の調達に関する特別措置法」（平成23年法律第108号）第９条第３項の認定を受けないことに同意いたします。"]
[]
[null,5,"　再エネ設備の新規導入につながる電力調達構築事業助成金交付要綱、その他法令の規程を遵守することを誓約いたします。"]
[]
[null,6,"　本申請書は、事実に基づき、申請者の不利益にならない範囲において訂正される可能性があることについて同意いたします。"]
[]
[null,"以上の事項全てを満たすことを誓約いたします。"]
[]
[null,null,null,null,null,"年",null,"月",null,"日"]
[]
[null,null,null,"住所"]
[null,null,null,null,{"$f":"第1号!J10","v":0}]
[null,null,null,"名称"]
[null,null,null,null,{"$f":"第1号!J11","v":0}]
[null,null,null,"代表者の職・氏名"]
[null,null,null,null,{"$f":"第1号!J12","v":0},null,null,null,null,null,{"$f":"第1号!M12","v":0}]
[]
[null,"※　法人その他の団体にあっては、主たる事務所の所在地、名称及び代表者の氏名を記入すること。"]

{"sheet":"第2号 (共同申請者①用) ","index":4,"n_rows":37,"n_cols":11,"rows_kept":37,"cut":false,"hidden":false,"merged":[[3,0,3,16],[4,0,4,16],[34,4,34,8],[25,1,25,15],[27,3,27,4],[30,4,30,14],[32,4,32,14],[34,10,34,14],[21,2,21,15],[23,2,23,15],[12,2,12,14],[9,2,9,15],[10,2,10,15],[11,2,11,15],[19,2,19,15]]}
[null,"第２号様式（第８条関係)"]
[]
[null,"再エネ設備の新規導入につながる電力調達構築事業"]
["誓　　約　　書"]
["【第一面】"]
[]
[null,"公益財団法人　東京都環境公社"]
[null,"　理事長　殿"]
[]
[null,1,"　再エネ設備の新規導入につながる電力調達構築事業助成金交付要綱（令和３年８月19日付３都環公地温第1050号。以下「交付要綱」という。）第８条の規定に基づく助成金の交付の申請を行うに当たり、当該申請により助成金等の交付を受けようとする者（法人その他の団体にあっては、代表者、役員又は使用人その他の従業員若しくは構成員を含む。）が交付要綱第４条に規定する助成対象事業者に該当し、将来にわたっても該当するよう法令等を遵守することをここに誓約いたします。"]
[null,2,"　この誓約に違反又は相違があり、交付要綱第24条の規定により助成金交付決定の全部又は一部の取消しを受けた場合において、交付要綱第25条に規定する助成金の返還を請求されたときは、これに異議なく応じることを誓約いたします。"]
[null,3,"　貴公社理事長又は東京都が必要と認めた場合には、暴力団関係者であるか否かの確認のため、警視庁へ照会がなされることに同意いたします。"]
[null,null,"※　この誓約書における「暴力団関係者」とは、次に掲げる者をいう。"]
[null,null,null,"・暴力団又は暴力団員が実質的に経営を支配する法人等に所属する者"]
[null,null,null,"・暴力団又員を雇用している者"]
[null,null,null,"・暴力団又は暴力団員を不当に利用していると認められる者"]
[null,null,null,"・暴力団の維持、運営に協力し、又は関与していると認められる者"]
[null,null,null,"・暴力団又は暴力団員と社会的に非難されるべき関係を有していると認められる者"]
[]
[null,4,"　当該申請した事業は、取得財産等の処分制限がかかる期間において「電気事業者による再生可能エネルギー電気の調達に関する特別措置法」（平成23年法律第108号）第９条第３項の認定を受けないことに同意いたします。"]
[]
[null,5,"　再エネ設備の新規導入につながる電力調達構築事業助成金交付要綱、その他法令の規程を遵守することを誓約いたします。"]
[]
[null,6,"　本申請書は、事実に基づき、申請者の不利益にならない範囲において訂正される可能性があることについて同意いたします。"]
[]
[null,"以上の事項全てを満たすことを誓約いたします。"]
[]
[null,null,null,{"$f":"第1号!K3","v":0},null,"年",{"$f":"第1号!N3","v":0},"月",{"$f":"第1号!P3","v":0},"日"]
[]
[null,null,null,"住所"]
[null,null,null,null,{"$f":"'第1号 第二面'!I10","v":0}]
[null,null,null,"名称"]
[null,null,null,null,{"$f":"'第1号 第二面'!I8","v":0}]
[null,null,null,"代表者の職・氏名"]
[null,null,null,null,{"$f":"'第1号 第二面'!I11","v":0},null,null,null,null,null,{"$f":"'第1号 第二面'!L11","v":0}]
[]
[null,"※　法人その他の団体にあっては、主たる事務所の所在地、名称及び代表者の氏名を記入すること。"]

{"sheet":"第2号 (共同申請者②用) ","index":5,"n_rows":37,"n_cols":11,"rows_kept":37,"cut":false,"hidden":false,"merged":[[3,0,3,16],[4,0,4,16],[34,4,34,8],[34,10,34,14],[25,1,25,15],[27,3,27,4],[30,4,30,14],[32,4,32,14],[21,2,21,15],[23,2,23,15],[12,2,12,14],[9,2,9,15],[10,2,10,15],[11,2,11,15],[19,2,19,15]]}
[null,"第２号様式（第８条関係)"]
[]
[null,"再エネ設備の新規導入につながる電力調達構築事業"]
["誓　　約　　書"]
["【第一面】"]
[]
[null,"公益財団法人　東京都環境公社"]
[null,"　理事長　殿"]
[]
[null,1,"　再エネ設備の新規導入につながる電力調達構築事業助成金交付要綱（令和３年８月19日付３都環公地温第1050号。以下「交付要綱」という。）第８条の規定に基づく助成金の交付の申請を行うに当たり、当該申請により助成金等の交付を受けようとする者（法人その他の団体にあっては、代表者、役員又は使用人その他の従業員若しくは構成員を含む。）が交付要綱第４条に規定する助成対象事業者に該当し、将来にわたっても該当するよう法令等を遵守することをここに誓約いたします。"]
[null,2,"　この誓約に違反又は相違があり、交付要綱第24条の規定により助成金交付決定の全部又は一部の取消しを受けた場合において、交付要綱第25条に規定する助成金の返還を請求されたときは、これに異議なく応じることを誓約いたします。"]
[null,3,"　貴公社理事長又は東京都が必要と認めた場合には、暴力団関係者であるか否かの確認のため、警視庁へ照会がなされることに同意いたします。"]
[null,null,"※　この誓約書における「暴力団関係者」とは、次に掲げる者をいう。"]
[null,null,null,"・暴力団又は暴力団員が実質的に経営を支配する法人等に所属する者"]
[null,null,null,"・暴力団又員を雇用している者"]
[null,null,null,"・暴力団又は暴力団員を不当に利用していると認められる者"]
[null,null,null,"・暴力団の維持、運営に協力し、又は関与していると認められる者"]
[null,null,null,"・暴力団又は暴力団員と社会的に非難されるべき関係を有していると認められる者"]
[]
[null,4,"　当該申請した事業は、取得財産等の処分制限がかかる期間において「電気事業者による再生可能エネルギー電気の調達に関する特別措置法」（平成23年法律第108号）第９条第３項の認定を受けないことに同意いたします。"]
[]
[null,5,"　再エネ設備の新規導入につながる電力調達構築事業助成金交付要綱、その他法令の規程を遵守することを誓約いたします。"]
[]
[null,6,"　本申請書は、事実に基づき、申請者の不利益にならない範囲において訂正される可能性があることについて同意いたします。"]
[]
[null,"以上の事項全てを満たすことを誓約いたします。"]
[]
[null,null,null,{"$f":"第1号!K3","v":0},null,"年",{"$f":"第1号!N3","v":0},"月",{"$f":"第1号!P3","v":0},"日"]
[]
[null,null,null,"住所"]
[null,null,null,null,{"$f":"'第1号 第二面'!I18","v":0}]
[null,null,null,"名称"]
[null,null,null,null,{"$f":"'第1号 第二面'!I16","v":0}]
[null,null,null,"代表者の職・氏名"]
[null,null,null,null,{"$f":"'第1号 第二面'!I19","v":0},null,null,null,null,null,{"$f":"'第1号 第二面'!L19","v":0}]
[]
[null,"※　法人その他の団体にあっては、主たる事務所の所在地、名称及び代表者の氏名を記入すること。"]

{"sheet":"第2号 (共同申請者③用) ","index":6,"n_rows":37,"n_cols":11,"rows_kept":37,"cut":false,"hidden":false,"merged":[[3,0,3,16],[4,0,4,16],[34,4,34,8],[34,10,34,14],[25,1,25,15],[27,3,27,4],[30,4,30,14],[32,4,32,14],[21,2,21,15],[23,2,23,15],[12,2,12,14],[9,2,9,15],[10,2,10,15],[11,2,11,15],[19,2,19,15]]}
[null,"第２号様式（第８条関係)"]
[]
[null,"再エネ設備の新規導入につながる電力調達構築事業"]
["誓　　約　　書"]
["【第一面】"]
[]
[null,"公益財団法人　東京都環境公社"]
[null,"　理事長　殿"]
[]
[null,1,"　再エネ設備の新規導入につながる電力調達構築事業助成金交付要綱（令和３年８月19日付３都環公地温第1050号。以下「交付要綱」という。）第８条の規定に基づく助成金の交付の申請を行うに当たり、当該申請により助成金等の交付を受けようとする者（法人その他の団体にあっては、代表者、役員又は使用人その他の従業員若しくは構成員を含む。）が交付要綱第４条に規定する助成対象事業者に該当し、将来にわたっても該当するよう法令等を遵守することをここに誓約いたします。"]
[null,2,"　この誓約に違反又は相違があり、交付要綱第24条の規定により助成金交付決定の全部又は一部の取消しを受けた場合において、交付要綱第25条に規定する助成金の返還を請求されたときは、これに異議なく応じることを誓約いたします。"]
[null,3,"　貴公社理事長又は東京都が必要と認めた場合には、暴力団関係者であるか否かの確認のため、警視庁へ照会がなされることに同意いたします。"]
[null,null,"※　この誓約書における「暴力団関係者」とは、次に掲げる者をいう。"]
[null,null,null,"・暴力団又は暴力団員が実質的に経営を支配する法人等に所属する者"]
[null,null,null,"・暴力団又員を雇用している者"]
[null,null,null,"・暴力団又は暴力団員を不当に利用していると認められる者"]
[null,null,null,"・暴力団の維持、運営に協力し、又は関与していると認められる者"]
[null,null,null,"・暴力団又は暴力団員と社会的に非難されるべき関係を有していると認められる者"]
[]
[null,4,"　当該申請した事業は、取得財産等の処分制限がかかる期間において「電気事業者による再生可能エネルギー電気の調達に関する特別措置法」（平成23年法律第108号）第９条第３項の認定を受けないことに同意いたします。"]
[]
[null,5,"　再エネ設備の新規導入につながる電力調達構築事業助成金交付要綱、その他法令の規程を遵守することを誓約いたします。"]
[]
[null,6,"　本申請書は、事実に基づき、申請者の不利益にならない範囲において訂正される可能性があることについて同意いたします。"]
[]
[null,"以上の事項全てを満たすことを誓約いたします。"]
[]
[null,null,null,{"$f":"第1号!K3","v":0},null,"年",{"$f":"第1号!N3","v":0},"月",{"$f":"第1号!P3","v":0},"日"]
[]
[null,null,null,"住所"]
[null,null,null,null,{"$f":"'第1号 第二面'!I26","v":0}]
[null,null,null,"名称"]
[null,null,null,null,{"$f":"'第1号 第二面'!I24","v":0}]
[null,null,null,"代表者の職・氏名"]
[null,null,null,null,{"$f":"'第1号 第二面'!I27","v":0},null,null,null,null,null,{"$f":"'第1号 第二面'!L27","v":0}]
[]
[null,"※　法人その他の団体にあっては、主たる事務所の所在地、名称及び代表者の氏名を記入すること。"]

{"sheet":"第2号 (手続き代行者用)","index":7,"n_rows":32,"n_cols":11,"rows_kept":32,"cut":false,"hidden":false,"merged":[[3,0,3,16],[10,2,10,14],[11,2,11,14],[5,0,5,16],[8,1,8,15],[9,2,9,15],[18,2,18,15],[19,2,19,15],[29,4,29,8],[22,3,22,4],[25,4,25,14],[27,4,27,14],[29,10,29,14]]}
[null,"第２号様式（第８条関係)"]
[]
[null,"再エネ設備の新規導入につながる電力調達構築事業"]
["誓　　約　　書"]
[]
["【第二面】"]
[]
[]
[null,"　再エネ設備の新規導入につながる電力調達構築事業助成金交付要綱（令和３年８月19日付３都環公地温第1050号。以下「交付要綱」という。）第９条の規定に基づき、助成対象事業者から依頼を受け、当該申請に係る手続きの代行を行うもの（以下、「手続き代行者」という。）が、以下の項目について理解し、遵守することをここに誓約いたします。"]
[null,1,"　貴公社理事長又は東京都が必要と認めた場合には、暴力団関係者であるか否かの確認のため、警視庁へ照会がなされることに同意いたします。"]
[]
[null,null,"※　この誓約書における「暴力団関係者」とは、次に掲げる者をいう。"]
[null,null,null,"・暴力団又は暴力団員が実質的に経営を支配する法人等に所属する者"]
[null,null,null,"・暴力団又員を雇用している者"]
[null,null,null,"・暴力団又は暴力団員を不当に利用していると認められる者"]
[null,null,null,"・暴力団の維持、運営に協力し、又は関与していると認められる者"]
[null,null,null,"・暴力団又は暴力団員と社会的に非難されるべき関係を有していると認められる者"]
[]
[null,2,"　交付要綱及びその他公社が定める交付申請等に係る全ての要件を理解し、申請者との連携を図り、事業が円滑に推進できるよう努めることを誓約いたします。"]
[null,3,"　公社が必要に応じて実施する手続代行者が行う手続きについての調査により、手続代行者が交付要綱の規定に従って手続を遂行していないと認められ、代行の停止を求めたときは、これに異議なく応じることに同意いたします。"]
[]
[]
[null,null,null,{"$f":"第1号!K3","v":0},null,"年",{"$f":"第1号!N3","v":0},"月",{"$f":"第1号!P3","v":0},"日"]
[]
[null,null,null,"住所"]
[null,null,null,null,{"$f":"'第1号 第二面'!I33","v":0}]
[null,null,null,"名称"]
[null,null,null,null,{"$f":"'第1号 第二面'!I32","v":0}]
[null,null,null,"代表者の職・氏名"]
[null,null,null,null,{"$f":"'第1号 第二面'!I34","v":0},null,null,null,null,null,{"$f":"'第1号 第二面'!L34","v":0}]
[]
[null,"※　法人その他の団体にあっては、主たる事務所の所在地、名称及び代表者の氏名を記入すること。"]

{"sheet":"第3号","index":8,"n_rows":31,"n_cols":23,"rows_kept":31,"cut":false,"hidden":false,"merged":[[2,13,2,14],[37,3,37,5],[33,6,33,8],[37,6,37,8],[6,6,6,17],[32,3,32,9],[36,3,36,9],[33,3,33,5],[22,7,22,9],[16,5,16,18],[17,4,17,5],[17,6,17,18],[20,4,20,5],[20,6,20,18],[22,11,22,18],[40,3,40,9],[41,3,41,5],[41,6,41,8],[44,3,44,9],[7,3,7,5],[7,6,7,8],[13,3,13,19],[11,2,11,18],[24,8,24,18],[26,8,26,18],[28,8,28,18],[30,8,30,18]]}
[null,"第３号様式（第８条関係）"]
[]
[null,null,null,null,null,null,null,null,null,null,null,null,null,null,null,"年",null,"月",null,"日",null,null,"←手入力"]
[]
[null,null,null,"公益財団法人　東京都環境公社"]
[null,null,null,"　理事長　殿"]
[]
[]
[]
["再エネ設備の新規導入につながる電力調達構築事業"]
[]
[null,null,"助成対象事業の実施に係る同意書"]
[]
[null,null,null,"　再エネ設備の新規導入につながる電力調達構築事業助成金交付要綱（令和３年８月19日付３都環公地温第1050号）第３条、第５条、第12条、第29条、第34条、第35条及び第36条の規定を確認の上、上記の事業者の助成金交付申請に同意します。"]
[null,null,null,"１．助成対象設備の導入場所"]
[null,null,null,null,"（住所）"]
[]
[null,null,null,null,"名称"]
[]
[null,null,null,"２．　助成対象設備の",null,null,null,"導入先","選択してください","の所有者"]
[null,null,null,null,"会社名"]
[]
[null,null,null,null,null,"役職名",null,null,null,null,"（氏名）"]
[]
[null,null,null,null,null,"担当者",null,"部課名"]
[]
[null,null,null,null,null,null,null,"氏名"]
[]
[null,null,null,null,null,null,null,"電話番号"]
[]
[null,null,null,null,null,null,null,"E-mail"]

{"sheet":"第4号.風力","index":9,"n_rows":101,"n_cols":8,"rows_kept":101,"cut":false,"hidden":false,"merged":[[106,2,106,4],[106,5,106,6],[106,7,106,9],[107,2,107,3],[107,6,107,9],[103,2,103,4],[103,5,103,9],[104,2,104,4],[104,5,104,9],[105,2,105,4],[105,5,105,6],[105,7,105,9],[98,2,98,3],[98,4,98,9],[99,2,99,3],[99,4,99,9],[100,1,100,3],[94,1,94,3],[97,1,97,3],[97,4,97,9],[94,4,94,9],[100,4,100,9],[91,1,91,3],[91,4,91,9],[92,2,92,3],[92,4,92,9],[93,2,93,3],[93,4,93,9],[86,2,86,3],[86,4,86,9],[87,2,87,3],[87,4,87,9],[88,1,88,3],[88,4,88,9],[82,1,82,3],[85,1,85,3],[85,4,85,9],[79,1,79,3],[79,4,79,9],[80,2,80,3],[80,4,80,9],[81,2,81,3],[81,4,81,9],[82,4,82,9],[74,2,74,3],[74,4,74,9],[75,2,75,3],[75,4,75,9],[76,1,76,3],[70,1,70,3],[73,1,73,3],[73,4,73,9],[70,4,70,9],[76,4,76,9],[67,1,67,3],[67,4,67,9],[68,2,68,3],[68,4,68,9],[69,2,69,3],[69,4,69,9],[62,2,62,3],[62,4,62,9],[63,2,63,3],[63,4,63,9],[64,1,64,3],[64,4,64,9],[58,1,58,3],[61,1,61,3],[61,4,61,9],[55,1,55,3],[55,4,55,9],[56,2,56,3],[56,4,56,9],[57,2,57,3],[57,4,57,9],[58,4,58,9],[50,2,50,3],[50,4,50,9],[51,2,51,3],[51,4,51,9],[52,1,52,3],[46,1,46,3],[49,1,49,3],[49,4,49,9],[46,4,46,9],[52,4,52,9],[43,1,43,3],[43,4,43,9],[44,2,44,3],[44,4,44,9],[45,2,45,3],[45,4,45,9],[38,2,38,3],[38,4,38,9],[39,2,39,3],[39,4,39,9],[40,1,40,3],[40,4,40,9],[34,1,34,3],[37,1,37,3],[37,4,37,9],[31,1,31,3],[31,4,31,9],[32,2,32,3],[32,4,32,9],[33,2,33,3],[33,4,33,9],[34,4,34,9],[26,2,26,3],[26,4,26,9],[27,2,27,3],[27,4,27,9],[28,1,28,3],[22,1,22,3],[25,1,25,3],[25,4,25,9],[22,4,22,9],[28,4,28,9],[19,1,19,3],[19,4,19,9],[20,2,20,3],[20,4,20,9],[21,2,21,3],[21,4,21,9],[15,2,15,3],[15,4,15,9],[16,1,16,3],[16,4,16,9],[10,2,10,4],[10,5,10,6],[10,8,10,9],[13,1,13,3],[13,4,13,9],[14,2,14,3],[14,4,14,9],[3,1,3,9],[7,2,7,4],[7,5,7,9],[8,2,8,4],[8,5,8,9],[9,2,9,4],[9,5,9,9]]}
[null,"第４号様式（第８条関係)"]
[]
["再エネ設備の新規導入につながる電力調達構築事業"]
[null,"事業実施計画書"]
[]
[null,"１．事業の概要"]
[null,"（１）事業の名称・設備の種別"]
[null,null,"再生可能エネルギー\n利用設備の種別",null,null,"風力発電"]
[null,null,"助成対象事業の名称",null,null,{"$f":"第1号!G25","v":0}]
[null,null,"助成対象事業の目的"]
[null,null,"助成対象事業の開始及び\n完了予定日",null,null,null,null,"～"]
[]
[null,"（２）－１．設備の導入場所"]
[null,"　　名称"]
[null,null,"フリガナ",null,{"$f":"PHONETIC(E16)","v":""}]
[null,null,"住所"]
[null,"　　所有代表者"]
[]
[null,"（２）－２．設備の導入場所"]
[null,"　　名称"]
[null,null,"フリガナ",null,{"$f":"PHONETIC(E22)","v":""}]
[null,null,"住所"]
[null,"　　所有代表者"]
[]
[null,"（２）－３．設備の導入場所"]
[null,"　　名称"]
[null,null,"フリガナ",null,{"$f":"PHONETIC(E28)","v":""}]
[null,null,"住所"]
[null,"　　所有代表者"]
[]
[null,"（２）－４．設備の導入場所"]
[null,"　　名称"]
[null,null,"フリガナ",null,{"$f":"PHONETIC(E34)","v":""}]
[null,null,"住所"]
[null,"　　所有代表者"]
[]
[null,"（２）－５．設備の導入場所"]
[null,"　　名称"]
[null,null,"フリガナ",null,{"$f":"PHONETIC(E40)","v":""}]
[null,null,"住所"]
[null,"　　所有代表者"]
[]
[null,"（３）－１．需要先の情報"]
[null,"　　施設の名称"]
[null,null,"フリガナ",null,{"$f":"PHONETIC(E46)","v":""}]
[null,null,"住所"]
[null,"　　所有代表者"]
[]
[null,"（３）－２．需要先の情報"]
[null,"　　施設の名称"]
[null,null,"フリガナ",null,{"$f":"PHONETIC(E52)","v":""}]
[null,null,"住所"]
[null,"　　所有代表者"]
[]
[null,"（３）－３．需要先の情報"]
[null,"　　施設の名称"]
[null,null,"フリガナ",null,{"$f":"PHONETIC(E58)","v":""}]
[null,null,"住所"]
[null,"　　所有代表者"]
[]
[null,"（３）－４．需要先の情報"]
[null,"　　施設の名称"]
[null,null,"フリガナ",null,{"$f":"PHONETIC(E64)","v":""}]
[null,null,"住所"]
[null,"　　所有代表者"]
[]
[null,"（３）－５．需要先の情報"]
[null,"　　施設の名称"]
[null,null,"フリガナ",null,{"$f":"PHONETIC(E70)","v":""}]
[null,null,"住所"]
[null,"　　所有代表者"]
[]
[null,"（３）－６．需要先の情報"]
[null,"　　施設の名称"]
[null,null,"フリガナ",null,{"$f":"PHONETIC(E76)","v":""}]
[null,null,"住所"]
[null,"　　所有代表者"]
[]
[null,"（３）－７．需要先の情報"]
[null,"　　施設の名称"]
[null,null,"フリガナ",null,{"$f":"PHONETIC(E82)","v":""}]
[null,null,"住所"]
[null,"　　所有代表者"]
[]
[null,"（３）－８．需要先の情報"]
[null,"　　施設の名称"]
[null,null,"フリガナ",null,{"$f":"PHONETIC(E88)","v":""}]
[null,null,"住所"]
[null,"　　所有代表者"]
[]
[null,"（３）－９．需要先の情報"]
[null,"　　施設の名称"]
[null,null,"フリガナ",null,{"$f":"PHONETIC(E94)","v":""}]
[null,null,"住所"]
[null,"　　所有代表者"]
[]
[null,"（３）－10．需要先の情報"]
[null,"　　施設の名称"]
[null,null,"フリガナ",null,{"$f":"PHONETIC(E100)","v":""}]
[null,null,"住所"]
[null,"　　所有代表者"]

{"sheet":"第4号.風力発電設備の概要_1枚目","index":10,"n_rows":39,"n_cols":13,"rows_kept":39,"cut":false,"hidden":false,"merged":[[22,3,22,5],[22,6,22,8],[23,3,23,5],[23,6,23,8],[24,3,24,5],[24,6,24,8],[31,3,31,5],[31,6,31,8],[25,3,25,5],[25,6,25,8],[27,3,27,5],[27,6,27,8],[28,3,28,5],[28,6,28,8],[29,3,29,5],[29,6,29,8],[30,3,30,5],[30,6,30,8],[4,5,4,6],[21,3,21,5],[21,6,21,8],[11,3,11,4],[15,3,15,5],[15,6,15,8],[16,3,16,5],[16,6,16,8],[17,3,17,5],[17,6,17,8],[8,2,8,4],[8,5,8,9],[18,3,18,5],[18,6,18,8],[19,3,19,5],[19,6,19,8]]}
[null,"２．設備の概要（１枚目）"]
[null,"　※複数の型式を導入する場合は、それぞれの型式ごとにまとめること。"]
[]
[null,"（１）発電機総出力（事業費合計値）"]
[null,null,null,"発電機総出力",null,null,null,"kW"]
[]
[null,"（２）設備導入場所ごとの設備概要"]
[]
[null,null,"導入場所名称",null,null,{"$f":"IF('第4号.風力'!E14=\"\",\"\",'第4号.風力'!E14)","v":""}]
[]
[]
[null,null,null,"発電総出力",null,null,{"$f":"IF(G18=\"\",\"\",ROUNDDOWN(SUM(G20,G26,G32),0))","v":""},"kW",null,null,null,null,"※発電総出力1kW以上"]
[]
[]
[null,"（３）発電機",null,null,null,null,null,null,null,null,null,null,"※単機出力１kW以上"]
[null,null,"①","製造者名（メーカー名）"]
[null,null,null,"型式名"]
[null,null,null,"１基あたりの定格出力",null,null,null,null,null,"W"]
[null,null,null,"基数",null,null,null,null,null,"基"]
[null,null,null,"定格出力合計",null,null,{"$f":"IF(G18=\"\",\"\",ROUNDDOWN((G18*G19)/1000,2))","v":""},null,null,"kW"]
[]
[null,null,"②","製造者名（メーカー名）"]
[null,null,null,"型式名"]
[null,null,null,"１基あたりの定格出力",null,null,null,null,null,"W"]
[null,null,null,"基数",null,null,null,null,null,"基"]
[null,null,null,"定格出力合計",null,null,{"$f":"IF(G24=\"\",\"\",ROUNDDOWN((G24*G25)/1000,2))","v":""},null,null,"kW"]
[]
[null,null,"③","製造者名（メーカー名）"]
[null,null,null,"型式名"]
[null,null,null,"１基あたりの定格出力",null,null,null,null,null,"W"]
[null,null,null,"基数",null,null,null,null,null,"基"]
[null,null,null,"定格出力合計",null,null,{"$f":"IF(G30=\"\",\"\",ROUNDDOWN((G30*G31)/1000,2))","v":""},null,null,"kW"]
[]
[]
[null,null,"［添付資料］"]
[null,null,"・","主要設備のカタログ、パンフレット等",null,null,"（添付資料７）"]
[null,null,"・","システム系統図",null,null,"（添付資料８）"]
[null,null,"・","単線結線図",null,null,"（添付資料９）"]
[null,null,"・","機器配置図",null,null,"（添付資料10）"]

{"sheet":"第4号.風力発電設備の概要_２枚目","index":11,"n_rows":34,"n_cols":13,"rows_kept":34,"cut":false,"hidden":false,"merged":[[5,2,5,4],[5,5,5,9],[7,3,7,4],[10,3,10,5],[10,6,10,8],[11,3,11,5],[11,6,11,8],[12,3,12,5],[12,6,12,8],[13,3,13,5],[13,6,13,8],[14,3,14,5],[14,6,14,8],[16,3,16,5],[16,6,16,8],[17,3,17,5],[17,6,17,8],[18,3,18,5],[18,6,18,8],[19,3,19,5],[19,6,19,8],[20,3,20,5],[20,6,20,8],[25,3,25,5],[25,6,25,8],[26,3,26,5],[26,6,26,8],[22,3,22,5],[22,6,22,8],[23,3,23,5],[23,6,23,8],[24,3,24,5],[24,6,24,8]]}
[null,"２．設備の概要（２枚目）"]
[]
[null,"　※複数の型式を導入する場合は、それぞれの型式ごとにまとめること。"]
[null,"（２）設備導入場所ごとの設備概要"]
[]
[null,null,"導入場所名称",null,null,{"$f":"IF('第4号.風力'!E20=\"\",\"\",'第4号.風力'!E20)","v":""}]
[]
[null,null,null,"発電総出力",null,null,{"$f":"IF(G13=\"\",\"\",ROUNDDOWN(SUM(G15,G21,G27),0))","v":""},"kW",null,null,null,null,"※発電総出力1kW以上"]
[]
[null,"（３）発電機",null,null,null,null,null,null,null,null,null,null,"※単機出力１kW以上"]
[null,null,"①","製造者名（メーカー名）"]
[null,null,null,"型式名"]
[null,null,null,"１基あたりの定格出力",null,null,null,null,null,"W"]
[null,null,null,"基数",null,null,null,null,null,"基"]
[null,null,null,"定格出力合計",null,null,{"$f":"IF(G13=\"\",\"\",ROUNDDOWN((G13*G14)/1000,2))","v":""},null,null,"kW"]
[]
[null,null,"②","製造者名（メーカー名）"]
[null,null,null,"型式名"]
[null,null,null,"１基あたりの定格出力",null,null,null,null,null,"W"]
[null,null,null,"基数",null,null,null,null,null,"基"]
[null,null,null,"定格出力合計",null,null,{"$f":"IF(G19=\"\",\"\",ROUNDDOWN((G19*G20)/1000,2))","v":""},null,null,"kW"]
[]
[null,null,"③","製造者名（メーカー名）"]
[null,null,null,"型式名"]
[null,null,null,"１基あたりの定格出力",null,null,null,null,null,"W"]
[null,null,null,"基数",null,null,null,null,null,"基"]
[null,null,null,"定格出力合計",null,null,{"$f":"IF(G25=\"\",\"\",ROUNDDOWN((G25*G26)/1000,2))","v":""},null,null,"kW"]
[]
[]
[null,null,"［添付資料］"]
[null,null,"・","主要設備のカタログ、パンフレット等",null,null,"（添付資料７）"]
[null,null,"・","システム系統図",null,null,"（添付資料８）"]
[null,null,"・","単線結線図",null,null,"（添付資料９）"]
[null,null,"・","機器配置図",null,null,"（添付資料10）"]

{"sheet":"第4号.風力発電設備の概要_３枚目","index":12,"n_rows":34,"n_cols":13,"rows_kept":34,"cut":false,"hidden":false,"merged":[[11,3,11,5],[11,6,11,8],[5,2,5,4],[5,5,5,9],[7,3,7,4],[10,3,10,5],[10,6,10,8],[12,3,12,5],[12,6,12,8],[13,3,13,5],[13,6,13,8],[14,3,14,5],[14,6,14,8],[16,3,16,5],[16,6,16,8],[17,3,17,5],[17,6,17,8],[18,3,18,5],[18,6,18,8],[19,3,19,5],[19,6,19,8],[20,3,20,5],[20,6,20,8],[22,3,22,5],[22,6,22,8],[26,3,26,5],[26,6,26,8],[23,3,23,5],[23,6,23,8],[24,3,24,5],[24,6,24,8],[25,3,25,5],[25,6,25,8]]}
[null,"２．設備の概要（３枚目）"]
[]
[null,"　※複数の型式を導入する場合は、それぞれの型式ごとにまとめること。"]
[null,"（２）設備導入場所ごとの設備概要"]
[]
[null,null,"導入場所名称",null,null,{"$f":"IF('第4号.風力'!E26=\"\",\"\",'第4号.風力'!E26)","v":""}]
[]
[null,null,null,"発電総出力",null,null,{"$f":"IF(G13=\"\",\"\",ROUNDDOWN(SUM(G15,G21,G27),0))","v":""},"kW",null,null,null,null,"※発電総出力1kW以上"]
[]
[null,"（３）発電機",null,null,null,null,null,null,null,null,null,null,"※単機出力１kW以上"]
[null,null,"①","製造者名（メーカー名）"]
[null,null,null,"型式名"]
[null,null,null,"１基あたりの定格出力",null,null,null,null,null,"W"]
[null,null,null,"基数",null,null,null,null,null,"基"]
[null,null,null,"定格出力合計",null,null,{"$f":"IF(G13=\"\",\"\",ROUNDDOWN((G13*G14)/1000,2))","v":""},null,null,"kW"]
[]
[null,null,"②","製造者名（メーカー名）"]
[null,null,null,"型式名"]
[null,null,null,"１基あたりの定格出力",null,null,null,null,null,"W"]
[null,null,null,"基数",null,null,null,null,null,"基"]
[null,null,null,"定格出力合計",null,null,{"$f":"IF(G19=\"\",\"\",ROUNDDOWN((G19*G20)/1000,2))","v":""},null,null,"kW"]
[]
[null,null,"③","製造者名（メーカー名）"]
[null,null,null,"型式名"]
[null,null,null,"１基あたりの定格出力",null,null,null,null,null,"W"]
[null,null,null,"基数",null,null,null,null,null,"基"]
[null,null,null,"定格出力合計",null,null,{"$f":"IF(G25=\"\",\"\",ROUNDDOWN((G25*G26)/1000,2))","v":""},null,null,"kW"]
[]
[]
[null,null,"［添付資料］"]
[null,null,"・","主要設備のカタログ、パンフレット等",null,null,"（添付資料７）"]
[null,null,"・","システム系統図",null,null,"（添付資料８）"]
[null,null,"・","単線結線図",null,null,"（添付資料９）"]
[null,null,"・","機器配置図",null,null,"（添付資料10）"]

{"sheet":"第4号.風力発電設備の概要_４枚目","index":13,"n_rows":36,"n_cols":13,"rows_kept":36,"cut":false,"hidden":false,"merged":[[13,3,13,5],[13,6,13,8],[5,2,5,4],[5,5,5,9],[8,3,8,4],[12,3,12,5],[12,6,12,8],[14,3,14,5],[14,6,14,8],[15,3,15,5],[15,6,15,8],[16,3,16,5],[16,6,16,8],[18,3,18,5],[18,6,18,8],[19,3,19,5],[19,6,19,8],[20,3,20,5],[20,6,20,8],[21,3,21,5],[21,6,21,8],[22,3,22,5],[22,6,22,8],[24,3,24,5],[24,6,24,8],[28,3,28,5],[28,6,28,8],[25,3,25,5],[25,6,25,8],[26,3,26,5],[26,6,26,8],[27,3,27,5],[27,6,27,8]]}
[null,"２．設備の概要（４枚目）"]
[]
[null,"　※複数の型式を導入する場合は、それぞれの型式ごとにまとめること。"]
[null,"（２）設備導入場所ごとの設備概要"]
[]
[null,null,"導入場所名称",null,null,{"$f":"IF('第4号.風力'!E32=\"\",\"\",'第4号.風力'!E32)","v":""}]
[]
[]
[null,null,null,"発電総出力",null,null,{"$f":"IF(G15=\"\",\"\",ROUNDDOWN(SUM(G17,G23,G29),0))","v":""},"kW",null,null,null,null,"※発電総出力1kW以上"]
[]
[]
[null,"（３）発電機",null,null,null,null,null,null,null,null,null,null,"※単機出力１kW以上"]
[null,null,"①","製造者名（メーカー名）"]
[null,null,null,"型式名"]
[null,null,null,"１基あたりの定格出力",null,null,null,null,null,"W"]
[null,null,null,"基数",null,null,null,null,null,"基"]
[null,null,null,"定格出力合計",null,null,{"$f":"IF(G15=\"\",\"\",ROUNDDOWN((G15*G16)/1000,2))","v":""},null,null,"kW"]
[]
[null,null,"②","製造者名（メーカー名）"]
[null,null,null,"型式名"]
[null,null,null,"１基あたりの定格出力",null,null,null,null,null,"W"]
[null,null,null,"基数",null,null,null,null,null,"基"]
[null,null,null,"定格出力合計",null,null,{"$f":"IF(G21=\"\",\"\",ROUNDDOWN((G21*G22)/1000,2))","v":""},null,null,"kW"]
[]
[null,null,"③","製造者名（メーカー名）"]
[null,null,null,"型式名"]
[null,null,null,"１基あたりの定格出力",null,null,null,null,null,"W"]
[null,null,null,"基数",null,null,null,null,null,"基"]
[null,null,null,"定格出力合計",null,null,{"$f":"IF(G27=\"\",\"\",ROUNDDOWN((G27*G28)/1000,2))","v":""},null,null,"kW"]
[]
[]
[null,null,"［添付資料］"]
[null,null,"・","主要設備のカタログ、パンフレット等",null,null,"（添付資料７）"]
[null,null,"・","システム系統図",null,null,"（添付資料８）"]
[null,null,"・","単線結線図",null,null,"（添付資料９）"]
[null,null,"・","機器配置図",null,null,"（添付資料10）"]

{"sheet":"第4号.風力発電設備の概要_５枚目","index":14,"n_rows":36,"n_cols":13,"rows_kept":36,"cut":false,"hidden":false,"merged":[[13,3,13,5],[13,6,13,8],[5,2,5,4],[5,5,5,9],[8,3,8,4],[12,3,12,5],[12,6,12,8],[14,3,14,5],[14,6,14,8],[15,3,15,5],[15,6,15,8],[16,3,16,5],[16,6,16,8],[18,3,18,5],[18,6,18,8],[19,3,19,5],[19,6,19,8],[20,3,20,5],[20,6,20,8],[21,3,21,5],[21,6,21,8],[22,3,22,5],[22,6,22,8],[24,3,24,5],[24,6,24,8],[28,3,28,5],[28,6,28,8],[25,3,25,5],[25,6,25,8],[26,3,26,5],[26,6,26,8],[27,3,27,5],[27,6,27,8]]}
[null,"２．設備の概要（５枚目）"]
[]
[null,"　※複数の型式を導入する場合は、それぞれの型式ごとにまとめること。"]
[null,"（２）設備導入場所ごとの設備概要"]
[]
[null,null,"導入場所名称",null,null,{"$f":"IF('第4号.風力'!E38=\"\",\"\",'第4号.風力'!E38)","v":""}]
[]
[]
[null,null,null,"発電総出力",null,null,{"$f":"IF(G15=\"\",\"\",ROUNDDOWN(SUM(G17,G23,G29),0))","v":""},"kW",null,null,null,null,"※発電総出力1kW以上"]
[]
[]
[null,"（３）発電機",null,null,null,null,null,null,null,null,null,null,"※単機出力１kW以上"]
[null,null,"①","製造者名（メーカー名）"]
[null,null,null,"型式名"]
[null,null,null,"１基あたりの定格出力",null,null,null,null,null,"W"]
[null,null,null,"基数",null,null,null,null,null,"基"]
[null,null,null,"定格出力合計",null,null,{"$f":"IF(G15=\"\",\"\",ROUNDDOWN((G15*G16)/1000,2))","v":""},null,null,"kW"]
[]
[null,null,"②","製造者名（メーカー名）"]
[null,null,null,"型式名"]
[null,null,null,"１基あたりの定格出力",null,null,null,null,null,"W"]
[null,null,null,"基数",null,null,null,null,null,"基"]
[null,null,null,"定格出力合計",null,null,{"$f":"IF(G21=\"\",\"\",ROUNDDOWN((G21*G22)/1000,2))","v":""},null,null,"kW"]
[]
[null,null,"③","製造者名（メーカー名）"]
[null,null,null,"型式名"]
[null,null,null,"１基あたりの定格出力",null,null,null,null,null,"W"]
[null,null,null,"基数",null,null,null,null,null,"基"]
[null,null,null,"定格出力合計",null,null,{"$f":"IF(G27=\"\",\"\",ROUNDDOWN((G27*G28)/1000,2))","v":""},null,null,"kW"]
[]
[]
[null,null,"［添付資料］"]
[null,null,"・","主要設備のカタログ、パンフレット等",null,null,"（添付資料７）"]
[null,null,"・","システム系統図",null,null,"（添付資料８）"]
[null,null,"・","単線結線図",null,null,"（添付資料９）"]
[null,null,"・","機器配置図",null,null,"（添付資料10）"]

{"sheet":"第4号.風力_導入効果","index":15,"n_rows":107,"n_cols":13,"rows_kept":107,"cut":false,"hidden":false,"merged":[[26,2,28,3],[2,3,2,5],[2,6,2,7],[4,3,4,5],[4,6,4,7],[6,3,6,5],[6,6,6,7],[13,2,13,3],[14,2,16,3],[19,2,19,3],[20,2,22,3],[25,2,25,3],[62,2,64,3],[31,2,31,3],[32,2,34,3],[37,2,37,3],[38,2,40,3],[43,2,43,3],[44,2,46,3],[49,2,49,3],[50,2,52,3],[55,2,55,3],[56,2,58,3],[61,2,61,3],[93,2,95,3],[67,2,67,3],[68,2,70,3],[74,2,74,3],[75,2,77,3],[80,2,80,3],[81,2,83,3],[85,2,85,3],[86,2,86,3],[87,2,89,3],[91,2,91,3],[92,2,92,3],[108,12,108,16],[109,7,109,8],[97,2,97,3],[98,2,98,3],[99,2,101,3],[103,2,103,3],[107,2,107,3],[108,1,108,9]]}
[null,"３．導入効果"]
[]
[null,null,null,"・需要先の年間想定電力消費量(A)",null,null,{"$f":"IF(E15=\"\",\"\",(J18+J24+J30+J36+J42+J48+J54+J60+J66+J72))","v":""},null,"kWh/年"]
[]
[null,null,null,"・年間想定発電電力量(B)（事業合計）",null,null,{"$f":"IF(E76=\"\",\"\",SUM(J79,J85,J91,J97,J103))","v":""},null,"kWh/年"]
[]
[null,null,null,"・差 （A－B)",null,null,{"$f":"IF(E15=\"\",\"\",G3-G5)","v":""},null,"kWh/年"]
[]
[null,"　「需要先の年間想定電力消費量」に対する「年間想定発電電力量」の比率"]
[null,null,null,null,null,null,{"$f":"IF(G5=\"\",\"\",ROUND(G5/G3*100,2))","v":""},"%"]
[null,null,null,null,null,{"$f":"IF(G10=\"\",\"\",IF(G10>=100,\"申請要件を満たさないため申請不可\",\"  \"))","v":""}]
[]
[null,"（１）需要先ごとの消費電力量",null,null,null,null,null,null,null,"（kWh）"]
[null,null,"消費電力量（A）",null,"４月","５月","６月","７月","８月","９月"]
[null,null,{"$f":"IF('第4号.風力'!E44=\"\",\"\",'第4号.風力'!E44)","v":""}]
[null,null,null,null,"１０月","１１月","１２月","１月","２月","３月"]
[]
[null,null,null,null,null,null,null,"消費電力量小計(kWh)",null,{"$f":"IF(E15=\"\",\"0\",SUM(E15:J15,E17:J17))","v":"0"}]
[]
[null,null,"消費電力量（A）",null,"４月","５月","６月","７月","８月","９月"]
[null,null,{"$f":"IF('第4号.風力'!E50=\"\",\"\",'第4号.風力'!E50)","v":""}]
[null,null,null,null,"１０月","１１月","１２月","１月","２月","３月"]
[]
[null,null,null,null,null,null,null,"消費電力量小計(kWh)",null,{"$f":"IF(E21=\"\",\"0\",SUM(E21:J21,E23:J23))","v":"0"}]
[]
[null,null,"消費電力量（A）",null,"４月","５月","６月","７月","８月","９月"]
[null,null,{"$f":"IF('第4号.風力'!E56=\"\",\"\",'第4号.風力'!E56)","v":""}]
[null,null,null,null,"１０月","１１月","１２月","１月","２月","３月"]
[]
[null,null,null,null,null,null,null,"消費電力量小計(kWh)",null,{"$f":"IF(E27=\"\",\"0\",SUM(E27:J27,E29:J29))","v":"0"}]
[]
[null,null,"消費電力量（A）",null,"４月","５月","６月","７月","８月","９月"]
[null,null,{"$f":"IF('第4号.風力'!E62=\"\",\"\",'第4号.風力'!E62)","v":""}]
[null,null,null,null,"１０月","１１月","１２月","１月","２月","３月"]
[]
[null,null,null,null,null,null,null,"消費電力量小計(kWh)",null,{"$f":"IF(E33=\"\",\"0\",SUM(E33:J33,E35:J35))","v":"0"}]
[]
[null,null,"消費電力量（A）",null,"４月","５月","６月","７月","８月","９月"]
[null,null,{"$f":"IF('第4号.風力'!E68=\"\",\"\",'第4号.風力'!E68)","v":""}]
[null,null,null,null,"１０月","１１月","１２月","１月","２月","３月"]
[]
[null,null,null,null,null,null,null,"消費電力量小計(kWh)",null,{"$f":"IF(E39=\"\",\"0\",SUM(E39:J39,E41:J41))","v":"0"}]
[]
[null,null,"消費電力量（A）",null,"４月","５月","６月","７月","８月","９月"]
[null,null,{"$f":"IF('第4号.風力'!E74=\"\",\"\",'第4号.風力'!E74)","v":""}]
[null,null,null,null,"１０月","１１月","１２月","１月","２月","３月"]
[]
[null,null,null,null,null,null,null,"消費電力量小計(kWh)",null,{"$f":"IF(E45=\"\",\"0\",SUM(E45:J45,E47:J47))","v":"0"}]
[]
[null,null,"消費電力量（A）",null,"４月","５月","６月","７月","８月","９月"]
[null,null,{"$f":"IF('第4号.風力'!E80=\"\",\"\",'第4号.風力'!E80)","v":""}]
[null,null,null,null,"１０月","１１月","１２月","１月","２月","３月"]
[]
[null,null,null,null,null,null,null,"消費電力量小計(kWh)",null,{"$f":"IF(E51=\"\",\"0\",SUM(E51:J51,E53:J53))","v":"0"}]
[]
[null,null,"消費電力量（A）",null,"４月","５月","６月","７月","８月","９月"]
[null,null,{"$f":"IF('第4号.風力'!E86=\"\",\"\",'第4号.風力'!E86)","v":""}]
[null,null,null,null,"１０月","１１月","１２月","１月","２月","３月"]
[]
[null,null,null,null,null,null,null,"消費電力量小計(kWh)",null,{"$f":"IF(E57=\"\",\"0\",SUM(E57:J57,E59:J59))","v":"0"}]
[]
[null,null,"消費電力量（A）",null,"４月","５月","６月","７月","８月","９月"]
[null,null,{"$f":"IF('第4号.風力'!E92=\"\",\"\",'第4号.風力'!E92)","v":""}]
[null,null,null,null,"１０月","１１月","１２月","１月","２月","３月"]
[]
[null,null,null,null,null,null,null,"消費電力量小計(kWh)",null,{"$f":"IF(E63=\"\",\"0\",SUM(E63:J63,E65:J65))","v":"0"}]
[]
[null,null,"消費電力量（A）",null,"４月","５月","６月","７月","８月","９月"]
[null,null,{"$f":"IF('第4号.風力'!E98=\"\",\"\",'第4号.風力'!E98)","v":""}]
[null,null,null,null,"１０月","１１月","１２月","１月","２月","３月"]
[]
[null,null,null,null,null,null,null,"消費電力量小計(kWh)",null,{"$f":"IF(E69=\"\",\"0\",SUM(E69:J69,E71:J71))","v":"0"}]
[]
[null,"（２）設備導入場所ごとの想定発電電力量（月別、年間の発電量）",null,null,null,null,null,null,null,"（kWh）"]
[null,null,"発電電力量（B）",null,"４月","５月","６月","７月","８月","９月",null,null,"発電電力量は試算をもとに記入してください"]
[null,null,{"$f":"IF('第4号.風力発電設備の概要_1枚目'!F9=\"\",\"\",'第4号.風力発電設備の概要_1枚目'!F9)","v":""}]
[null,null,null,null,"１０月","１１月","１２月","１月","２月","３月"]
[]
[null,null,null,null,null,null,null,"発電電力量小計(kWh)",null,{"$f":"IF(E76=\"\",\"0\",SUM(E76:J76,E78:J78))","v":"0"}]
[]
[null,null,"発電電力量（B）",null,"４月","５月","６月","７月","８月","９月"]
[null,null,{"$f":"IF('第4号.風力発電設備の概要_２枚目'!F6=\"\",\"\",'第4号.風力発電設備の概要_２枚目'!F6)","v":""}]
[null,null,null,null,"１０月","１１月","１２月","１月","２月","３月"]
[]
[null,null,null,null,null,null,null,"発電電力量小計(kWh)",null,{"$f":"IF(E82=\"\",\"0\",SUM(E82:J82,E84:J84))","v":"0"}]
[]
[null,null,"発電電力量（B）",null,"４月","５月","６月","７月","８月","９月"]
[null,null,{"$f":"IF('第4号.風力発電設備の概要_３枚目'!F6=\"\",\"\",'第4号.風力発電設備の概要_３枚目'!F6)","v":""}]
[null,null,null,null,"１０月","１１月","１２月","１月","２月","３月"]
[]
[null,null,null,null,null,null,null,"発電電力量小計(kWh)",null,{"$f":"IF(E88=\"\",\"0\",SUM(E88:J88,E90:J90))","v":"0"}]
[]
[null,null,"発電電力量（B）",null,"４月","５月","６月","７月","８月","９月"]
[null,null,{"$f":"IF('第4号.風力発電設備の概要_４枚目'!F6=\"\",\"\",'第4号.風力発電設備の概要_４枚目'!F6)","v":""}]
[null,null,null,null,"１０月","１１月","１２月","１月","２月","３月"]
[]
[null,null,null,null,null,null,null,"発電電力量小計(kWh)",null,{"$f":"IF(E94=\"\",\"0\",SUM(E94:J94,E96:J96))","v":"0"}]
[]
[null,null,"発電電力量（B）",null,"４月","５月","６月","７月","８月","９月"]
[null,null,{"$f":"IF('第4号.風力発電設備の概要_５枚目'!F6=\"\",\"\",'第4号.風力発電設備の概要_５枚目'!F6)","v":""}]
[null,null,null,null,"１０月","１１月","１２月","１月","２月","３月"]
[]
[null,null,null,null,null,null,null,"発電電力量小計(kWh)",null,{"$f":"IF(E100=\"\",\"0\",SUM(E100:J100,E102:J102))","v":"0"}]
[]
[null,null,"［添付資料］"]
[null,null,"・対象施設等で必要とされる電力の計算根拠",null,null,null,null,"（添付資料11）"]
[null,null,"・再エネ設備から供給される発電量の計算根拠",null,null,null,null,"（添付資料12）"]

{"sheet":"第4号.風力4ー10","index":16,"n_rows":203,"n_cols":16,"rows_kept":203,"cut":false,"hidden":false,"merged":[[77,1,87,9],[15,1,26,9],[50,1,60,9],[73,2,73,9],[74,2,74,9],[75,2,75,9],[156,1,156,2],[156,3,156,4],[156,5,156,9],[1,7,1,8],[11,1,11,3],[11,4,11,9],[12,1,13,3],[33,1,33,3],[33,4,33,5],[34,1,35,3],[34,4,35,5],[67,1,70,1],[67,2,70,9],[138,2,147,9],[12,5,12,9],[13,5,13,9],[157,1,157,2],[157,3,157,4],[157,5,157,9],[158,1,158,2],[158,3,158,4],[158,5,158,9],[159,1,159,2],[159,3,159,4],[159,5,159,9],[162,1,162,2],[162,3,162,4],[162,5,162,9],[160,3,160,4],[161,3,161,4],[184,1,184,9],[202,1,202,3],[202,4,202,5],[202,6,202,7],[202,8,202,9]]}
[]
[null,"４．事業費"]
[null,"（１）事業経費配分"]
[null,null,"共通様式１のとおり"]
[]
[null,"（２）助成金申請額"]
[null,null,"共通様式１のとおり"]
[]
[null,"５．電力供給方法の概要"]
[]
[null,"【電力供給方法の概要】",null,null,null,null,null,null,null,null,null,null,null,null,null,"形態①～形態⑨のいずれかを選択してください"]
[null,"形態の区分",null,null,"形態①～形態⑨のいずれかを選択してください",null,null,null,null,null,null,null,null,null,null,"形態①　発電事業者１者→小売電気事業者→需要家１者"]
[null,"小売電気事業者",null,null,"名称",null,null,null,null,null,null,null,null,null,null,"形態②　発電事業者１者→小売電気事業者→需要家複数者"]
[null,null,null,null,"住所",null,null,null,null,null,null,null,null,null,null,"形態③　発電事業者複数者→小売電気事業者→需要家１者"]
[null,"【概要】",null,null,null,null,null,null,null,null,null,null,null,null,null,"形態④　発電事業者複数者→小売電気事業者→需要家複数者"]
[null,null,null,null,null,null,null,null,null,null,null,null,null,null,null,"形態⑤　発電事業者１者→自己託送→需要家１者"]
[null,null,null,null,null,null,null,null,null,null,null,null,null,null,null,"形態⑥　発電事業者１者→自己託送→需要家複数者"]
[null,null,null,null,null,null,null,null,null,null,null,null,null,null,null,"形態⑦　発電事業者複数者→自己託送→需要家１者"]
[null,null,null,null,null,null,null,null,null,null,null,null,null,null,null,"形態⑧　発電事業者複数者→自己託送→需要家複数者"]
[null,null,null,null,null,null,null,null,null,null,null,null,null,null,null,"形態⑨　形態①～形態⑧のいずれにも該当しないもの"]
[]
[]
[]
[]
[]
[]
[]
[]
[null,"［添付資料］"]
[null,"・自己託送、小売電気事業者を介して供給することに係る申込書(写し)（添付資料20）"]
[]
[null,"６．発電事業者・電力需要家間の電力調達契約年数または事業継続年数"]
[]
[null,"項目",null,null,"年数"]
[]
[]
[]
[null,"［添付資料］"]
[null,"・電力購入契約書（写し）又は契約書案 （添付資料21）"]
[]
[null,"７．再エネ設置地域との関係構築"]
[]
[null,"（１）非常時における助成対象設備の利活用に係る協定"]
[]
[null,"協定締結先"]
[]
[null,"自治体等の名称"]
[null,"代表者 \n職・氏名"]
[null,"住所"]
[null,"【概要】"]
[]
[]
[]
[]
[]
[]
[]
[]
[]
[]
[]
[]
[null,"［添付資料］"]
[null,"・交付要綱第３条第２項第１号を満たすことが分かる資料 （添付資料23）"]
[]
[null,"（２）再エネ設置地域との関係構築 （ (１) を除くもの ）"]
[]
[null,"関係構築\n(ア）～(オ)",null,null,null,null,null,null,null,null,null,null,null,null,"（ア）助成対象設備から得られた電気を、本店所在地が再エネ設置地域に属する小売電気事業者に卸し、都内の特定の施設に供給する"]
[null,null,null,null,null,null,null,null,null,null,null,null,null,null,"（イ）助成対象設備設置に係る出資または融資を、本店所在地が再エネ設置地域に属する事業者または再エネ設置地域住民から受ける"]
[null,null,null,null,null,null,null,null,null,null,null,null,null,null,"（ウ）助成対象設備に係る施工または維持管理を再エネ設置地域に属する事業者に担わせる"]
[null,null,null,null,null,null,null,null,null,null,null,null,null,null,"（エ）助成対象設備から得られた電気の需給管理を再エネ設置地域に属する事業者に担わせる"]
[null,null,null,null,null,null,null,null,null,null,null,null,null,null,"（オ）その他公社が認める再エネ設置地域との関係構築を行う"]
[null,"再エネ設置地域事業者（又は小売電気事業者、住民）"]
[null,"名称"]
[null,"代表者名"]
[null,"住所"]
[null,"【概要】"]
[]
[]
[]
[]
[]
[]
[]
[]
[]
[]
[]
[]
[null,"［添付資料］"]
[null,"・交付要綱第３条第２項第２号ア～オいずれかを満たすことがわかる資料（添付資料24）"]
[]
[]
[]
[]
[]
[]
[null,"８．事業の実施体制"]
[]
[null,"（１）以下の事業関係者が記載された、実施体制図を記載、または添付してください"]
[]
[null,null,"(ア)申請代表者",null,null,null,"　　(ク)発電した電力の卸先小売電気事業者",null,null,null,null,"□←体制図へ記載した項目はチェックを付けてください。"]
[null,null,"(イ)経理担当者",null,null,null,"　　(ケ)発電した電力の需要先、所有代表者"]
[null,null,"(ウ)検収責任者",null,null,null,"　　(コ)助成対象事業への出資、もしくは融資者"]
[null,null,"(エ)事業実施担当者",null,null,null,"　　(サ)助成対象設備の施行事業者"]
[null,null,"(オ)共同申請者",null,null,null,"　　(シ)助成対象設備の維持管理事業者"]
[null,null,"(カ)助成対象設備から得られた電気の受給管理を担う事業者"]
[null,null,"(キ)非常時における助成対象設備の利活用に係る協定等を締結した自治体"]
[]
[]
[]
[]
[]
[]
[]
[]
[]
[]
[]
[]
[]
[]
[]
[]
[]
[]
[]
[]
[]
[]
[]
[]
[]
[]
[]
[]
[]
[null,"（２）請負会社の選定方法"]
[]
[]
[]
[]
[]
[]
[]
[]
[]
[]
[null,"※選定に当たっては、見積書等による競争に付してください。"]
[]
[null,"９．実施事業に関する事項"]
[null,"（１）許認可・権利関係等事業実施の前提となる事項及び実施上問題となる事項"]
[null,"※　事業実施に当たって許認可（届出）、権利使用（又は取得）の必要なものについて、その取得状況等を"]
[null,"　記載すること。"]
[null,"※　実施上問題となる事項があれば、その内容と解決の見通しを記載すること。"]
[]
[null,"事　項",null,"事項の有無",null,"詳細"]
[null,"法規制に係る\n許認可",null,null,null,null,null,null,null,null,null,{"$f":"IF(D158=\"\",\"←【事項の有無】が選択されていません。必ず選択してください\",IF(E158=\" \",\"\",\"\"))","v":"←【事項の有無】が選択されていません。必ず選択してください"}]
[null,"地元調整",null,null,null,null,null,null,null,null,null,{"$f":"IF(D159=\"\",\"←【事項の有無】が選択されていません。必ず選択してください\",IF(E159=\" \",\"\",\"\"))","v":"←【事項の有無】が選択されていません。必ず選択してください"}]
[null,"系統連系協議",null,null,null,null,null,null,null,null,null,"←【事項の有無】が選択されていません。必ず選択してください"]
[null,"環境に関する調査等",null,null,null,null,null,null,null,null,null,"←【事項の有無】が選択されていません。必ず選択してください"]
[null,"用地確保",null,null,null,null,null,null,null,null,null,"←【事項の有無】が選択されていません。必ず選択してください"]
[null,"その他",null,null,null,null,null,null,null,null,null,"←【事項の有無】が選択されていません。必ず選択してください"]
[]
[null,"［添付資料］"]
[null,"・許認可,権利関係等事業実施の前提となる事項等がわかる資料 （添付資料26）"]
[null,"（２）「事業計画策定ガイドライン」遵守確認"]
[null,"【持続可能な事業実施に向けた方策】※それぞれにチェックを入れてください"]
[]
[null,null,"「事業計画策定ガイドライン（風力発電）」等を遵守します。"]
[]
[null,null,"風力発電設備の廃棄費用の積立について、計画に具体的に記載しています。"]
[]
[null,null,"事業計画作成の初期段階から地域住民と適切なコミュニケーションを図るとともに、"]
[null,null,"地域住民に十分配慮して事業を実施します。"]
[]
[]
[null,"【計画の概要】"]
[]
[]
[null,"［添付資料］"]
[null,"・事業計画策定ガイドライン遵守確認資料 （添付資料27）"]
[]
[null,"（３）設備の保守計画"]
[]
[]
[null,"（４）本事業スキームの活用"]
[null,"今後の活用見通し"]
[]
[]
[]
[]
[]
[]
[null,"過去の活用事例"]
[]
[]
[]
[]
[]
[]
[null,"（５）余剰電力売電の有無"]
[null,"売電の有無",null,null,null,null,null,null,null,null,null,"←固定価格買取制度を活用する場合は助成対象外事業"]